bitfinex/quotes_SOLUSD_20250403
["timestamp","ask_amount","ask_price","bid_price","bid_amount"]
[1743721683938,84.26737312,116.66,116.61,25.23057312]
[1743721685339,16.65547312,116.65,116.61,8.5751]
[1743721685741,88.13547312,116.65,116.6,25.23157312]
[1743721685933,16.65547312,116.64,116.6,8.5761]
[1743721686137,88.56195783,116.63,116.57,7.6697]
[1743721686325,88.56195783,116.63,116.52,175.34875236]
[1743721686326,16.65547312,116.61,116.56,8.5789]
[1743721686644,88.13547312,116.61,116.55,8.58]
[1743721686847,88.13547312,116.61,116.56,16.65547312]
[1743721687030,88.13547312,116.61,116.55,8.58]
[1743721687229,71.90648471,116.59,116.55,25.23547312]
[1743721687436,7.56,116.58,116.55,25.23547312]
[1743721690833,11.8500039,116.58,116.55,25.23547312]
[1743721691427,7.56,116.58,116.56,16.65547312]
[1743721692223,7.56,116.58,116.55,8.58]
[1743721692426,24.21547312,116.58,116.55,8.58]
[1743721693348,24.21547312,116.58,116.54,8.5807]
[1743721693931,16.65547312,116.56,116.52,8.5822]
[1743721694431,16.65547312,116.56,116.52,25.23767312]
[1743721695052,20.0,116.57,116.52,8.5822]
[1743721695239,16.65547312,116.56,116.52,25.23767312]
[1743721695549,25.23477312,116.56,116.52,25.23767312]
[1743721695730,16.65547312,116.56,116.52,25.23767312]
[1743721696131,7.56,116.55,116.52,25.23767312]
[1743721697541,7.56,116.55,116.52,8.5822]
[1743721697942,24.21547312,116.55,116.52,8.5822]
[1743721699139,7.56,116.55,116.52,8.5822]
[1743721699354,7.56,116.55,116.52,46.69317312]
[1743721700052,7.56,116.55,116.52,30.0377]
[1743721700959,7.56,116.55,116.52,8.5822]
[1743721701356,7.56,116.55,116.52,25.23767312]
[1743721702654,7.56,116.55,116.51,8.5826]
[1743721702850,7.56,116.55,116.51,25.23807312]
[1743721703158,24.21547312,116.55,116.51,25.23807312]
[1743721703359,24.21547312,116.55,116.51,8.5826]
[1743721703561,24.21547312,116.55,116.51,25.23807312]
[1743721704560,84.27557312,116.55,116.51,25.23807312]
[1743721704759,32.79557312,116.55,116.51,25.23807312]
[1743721704944,24.21547312,116.55,116.51,25.23807312]
[1743721706360,24.21547312,116.55,116.5,16.65547312]
[1743721706361,52.79547312,116.55,116.5,16.65547312]
[1743721706662,25.23707312,116.53,116.49,8.5844]
[1743721706838,38.70225783,116.52,116.48,8.5848]
[1743721707043,24.21547312,116.51,116.48,8.5848]
[1743721710671,7.56,116.51,116.48,8.5848]
[1743721710866,24.21547312,116.51,116.48,8.5848]
[1743721711043,7.56,116.51,116.48,8.5848]
[1743721711246,24.21547312,116.51,116.48,8.5848]
[1743721712162,24.21547312,116.51,116.46,30.0525]
[1743721712363,24.21547312,116.51,116.46,46.70797312]
[1743721712560,7.56,116.51,116.47,16.65547312]
[1743721712748,24.21547312,116.51,116.47,16.65547312]
[1743721712949,7.56,116.51,116.47,16.65547312]
[1743721713149,7.56,116.51,116.46,30.0525]
[1743721713344,24.21547312,116.51,116.46,30.0525]
[1743721713566,24.21547312,116.51,116.47,16.65547312]
[1743721714479,24.21547312,116.51,116.48,8.5851]
[1743721714656,143.58,116.53,116.49,16.65547312]
[1743721714849,7.58,116.53,116.49,16.65547312]
[1743721715657,24.23547312,116.53,116.49,16.65547312]
[1743721715857,7.58,116.53,116.49,16.65547312]
[1743721716670,7.58,116.53,116.5,8.5836]
[1743721716875,7.58,116.53,116.5,25.23907312]
[1743721717176,7.58,116.53,116.5,8.5836]
[1743721717553,24.23547312,116.53,116.5,8.5836]
[1743721717751,16.65547312,116.53,116.5,8.5836]
[1743721717953,7.58,116.52,116.5,8.5836]
[1743721719279,18.41793469,116.55,116.5,25.23907312]
[1743721719455,7.58,116.54,116.5,25.23907312]
[1743721719655,24.23547312,116.54,116.5,25.23907312]
[1743721720070,7.58,116.54,116.5,46.69827312]
[1743721720276,7.58,116.54,116.51,16.65547312]
[1743721720776,7.58,116.54,116.52,8.5822]
[1743721721278,18.27577312,116.55,116.52,8.5822]
[1743721721460,7.58,116.54,116.52,8.5822]
[1743721721985,7.58,116.54,116.51,8.5825]
[1743721726273,7.56,116.54,116.51,25.23797312]
[1743721726580,7.56,116.56,116.53,16.65547312]
[1743721726768,7.56,116.56,116.52,35.30512198]
[1743721726967,24.21547312,116.56,116.52,35.30512198]
[1743721727585,16.65547312,116.53,116.48,8.5849]
[1743721727755,7.56,116.52,116.48,25.24037312]
[1743721728565,7.56,116.52,116.48,16.65547312]
[1743721728863,32.79767312,116.52,116.47,18.64964886]
[1743721729182,32.79767312,116.52,116.47,43.89082198]
[1743721729659,32.79767312,116.52,116.48,16.65547312]
[1743721730182,24.21547312,116.52,116.47,27.23534886]
[1743721730371,24.21547312,116.52,116.48,16.65547312]
[1743721730568,7.56,116.52,116.48,16.65547312]
[1743721731686,25.23727312,116.53,116.48,16.65547312]
[1743721731861,7.56,116.52,116.48,16.65547312]
[1743721732060,25.23727312,116.53,116.48,16.65547312]
[1743721732266,16.1423,116.52,116.48,16.65547312]
[1743721734762,8.5823,116.52,116.48,16.65547312]
[1743721734962,7.56,116.51,116.48,16.65547312]
[1743721737090,16.1431,116.51,116.48,16.65547312]
[1743721737284,16.1431,116.51,116.47,27.23534886]
[1743721737285,32.79857312,116.51,116.46,7.9119]
[1743721737478,32.79857312,116.51,116.46,16.65547312]
[1743721738999,16.1431,116.51,116.47,16.65547312]
[1743721741075,20.14216157,116.47,116.39,7.6316]
[1743721741274,16.65547312,116.45,116.4,25.24647312]
[1743721741792,26.86297312,116.46,116.4,27.24064886]
[1743721742086,7.56,116.44,116.42,16.65547312]
[1743721742290,35.50473505,116.44,116.4,16.65547312]
[1743721742493,24.21547312,116.44,116.39,25.24687312]
[1743721742796,16.65547312,116.43,116.38,25.24797312]
[1743721743196,16.65547312,116.43,116.39,25.24697312]
[1743721743677,24.21547312,116.44,116.39,25.24697312]
[1743721744080,24.21547312,116.44,116.4,16.65547312]
[1743721744280,24.21547312,116.44,116.39,8.5915]
[1743721744484,7.56,116.44,116.41,16.65547312]
[1743721745695,7.58,116.46,116.43,16.65547312]
[1743721746569,524.40522314,116.49,116.44,16.65547312]
[1743721746570,509.35853469,116.49,116.44,16.65547312]
[1743721746794,7.58,116.46,116.44,16.65547312]
[1743721747196,7.58,116.46,116.43,16.65547312]
[1743721747393,16.65547312,116.48,116.44,8.5881]
[1743721747574,7.58,116.47,116.45,16.65547312]
[1743721747778,7.58,116.47,116.44,34.74136562]
[1743721749099,7.58,116.47,116.44,26.15326562]
[1743721750093,8.5852,116.48,116.44,26.15326562]
[1743721750322,16.1652,116.48,116.44,26.15326562]
[1743721750974,42.31846562,116.48,116.42,18.64964886]
[1743721751187,42.31846562,116.48,116.43,26.15326562]
[1743721752296,42.31846562,116.48,116.42,18.64964886]
[1743721752495,42.31846562,116.48,116.43,26.15326562]
[1743721753879,26.15326562,116.47,116.42,44.80291448]
[1743721754602,8.5866,116.46,116.42,26.15326562]
[1743721754796,8.5866,116.46,116.43,26.15326562]
[1743721755004,8.5862,116.47,116.43,26.15326562]
[1743721755798,34.73946562,116.47,116.41,6.6089]
[1743721756005,34.73946562,116.47,116.42,26.15326562]
[1743721756303,26.15326562,116.45,116.41,26.15326562]
[1743721756480,7.58,116.44,116.41,26.15326562]
[1743721757907,16.1682,116.44,116.41,26.15326562]
[1743721758088,16.1682,116.44,116.38,8.1953]
[1743721758291,42.32146562,116.44,116.39,26.15326562]
[1743721758616,26.15326562,116.4,116.32,8.1764]
[1743721758906,33.73326562,116.39,116.34,26.15326562]
[1743721759204,26.15326562,116.36,116.28,6.6089]
[1743721759401,26.15326562,116.4,116.35,26.15326562]
[1743721759611,7.58,116.39,116.36,26.15326562]
[1743721759789,16.1719,116.39,116.35,26.15326562]
[1743721760509,16.1719,116.39,116.31,18.79181043]
[1743721760809,16.1719,116.39,116.35,26.15326562]
[1743721764208,7.58,116.39,116.35,26.15326562]
[1743721764407,7.58,116.39,116.36,26.15326562]
[1743721768419,7.58,116.39,116.37,26.15326562]
[1743721768717,16.1706,116.41,116.37,26.15326562]
[1743721769724,16.1706,116.41,116.37,16.76018678]
[1743721770603,32.93078678,116.41,116.37,16.76018678]
[1743721771227,8.5898,116.42,116.38,16.76018678]
[1743721771398,17.7851,116.43,116.39,16.76018678]
[1743721771717,34.54528678,116.43,116.38,16.76018678]
[1743721772215,16.76018678,116.42,116.38,16.76018678]
[1743721772420,34.54528678,116.43,116.38,16.76018678]
[1743721775130,16.76018678,116.41,116.36,16.76018678]
[1743721776599,8.591,116.4,116.36,16.76018678]
[1743721778113,25.35088678,116.41,116.37,16.76018678]
[1743721778714,8.5907,116.41,116.37,16.76018678]
[1743721780126,60.1507,116.41,116.37,16.76018678]
[1743721780434,34.3407,116.41,116.37,16.76018678]
[1743721780636,8.5907,116.41,116.37,16.76018678]
[1743721789625,25.35018678,116.42,116.37,16.76018678]
[1743721790232,76.91018678,116.42,116.37,16.76018678]
[1743721792532,25.35018678,116.42,116.37,16.76018678]
[1743721792728,8.59,116.42,116.38,16.76018678]
[1743721794331,25.35018678,116.42,116.38,16.76018678]
[1743721796428,25.35018678,116.42,116.37,16.76018678]
[1743721797220,25.35018678,116.42,116.34,92.33459598]
[1743721797221,32.93018678,116.42,116.34,92.33459598]
[1743721797528,32.93018678,116.42,116.37,16.76018678]
[1743721799633,32.93018678,116.42,116.34,92.33459598]
[1743721799935,32.93018678,116.42,116.37,16.76018678]
[1743721800431,16.76018678,116.4,116.34,25.29384886]
[1743721800630,16.76018678,116.39,116.34,42.05403564]
[1743721801132,16.76018678,116.4,116.35,16.76018678]
[1743721801720,16.76018678,116.41,116.37,16.76018678]
[1743721801927,16.76018678,116.41,116.36,16.76018678]
[1743721802239,24.34018678,116.4,116.35,16.76018678]
[1743721803641,8.5918,116.39,116.34,6.6442]
[1743721803831,8.5918,116.39,116.35,16.76018678]
[1743721805135,8.5918,116.39,116.34,6.6442]
[1743721805341,8.5918,116.39,116.35,16.76018678]
[1743721807042,32.93158678,116.4,116.35,16.76018678]
[1743721807232,16.1714,116.4,116.35,16.76018678]
[1743721807436,7.58,116.4,116.36,16.76018678]
[1743721807943,16.1712,116.4,116.36,16.76018678]
[1743721808117,32.93138678,116.4,116.36,16.76018678]
[1743721808537,16.1712,116.4,116.36,16.76018678]
[1743721808844,16.76018678,116.42,116.38,16.76018678]
[1743721809026,25.95618678,116.43,116.38,16.76018678]
[1743721809546,25.35008678,116.42,116.38,16.76018678]
[1743721809741,16.76018678,116.41,116.35,18.64964886]
[1743721810052,16.76018678,116.4,116.35,18.64964886]
[1743721810245,16.76018678,116.4,116.35,35.40983564]
[1743721810747,8.5918,116.39,116.35,35.40983564]
[1743721811345,25.35198678,116.39,116.35,16.76018678]
[1743721811523,25.35198678,116.39,116.34,16.76018678]
[1743721811845,25.35198678,116.39,116.35,16.76018678]
[1743721812044,32.93198678,116.39,116.35,16.76018678]
[1743721815241,16.76018678,116.38,116.33,16.76018678]
[1743721815446,16.76018678,116.37,116.33,16.76018678]
[1743721815632,16.76018678,116.37,116.32,18.64964886]
[1743721815824,16.76018678,116.38,116.33,16.76018678]
[1743721816025,16.76018678,116.38,116.28,74.62074712]
[1743721816026,0.14216157,116.33,116.24,58.27478591]
[1743721816335,25.35848678,116.31,116.26,16.76018678]
[1743721816538,46.85268678,116.31,116.24,20.96160706]
[1743721816738,16.76018678,116.3,116.25,16.76018678]
[1743721817057,46.85268678,116.31,116.26,16.76018678]
[1743721817254,16.76018678,116.3,116.26,16.76018678]
[1743721817631,66.85268678,116.31,116.26,16.76018678]
[1743721818137,54.33856381,116.31,116.24,13.22690706]
[1743721818355,20.0,116.29,116.24,13.22690706]
[1743721818537,7.58,116.28,116.24,13.22690706]
[1743721818860,7.58,116.28,116.25,16.76018678]
[1743721819152,1.6319,116.3,116.26,16.76018678]
[1743721819374,9.2119,116.3,116.26,16.76018678]
[1743721819956,25.97208678,116.3,116.26,16.76018678]
[1743721820157,25.36008678,116.28,116.22,26.0]
[1743721820447,25.36008678,116.28,116.23,16.76018678]
[1743721820629,25.36008678,116.28,116.15,45.88102118]
[1743721820630,18.39208678,116.25,116.15,45.88102118]
[1743721820829,7.58,116.24,116.2,16.76018678]
[1743721821631,7.58,116.24,116.21,16.76018678]
[1743721822428,16.1829,116.24,116.2,16.76018678]
[1743721822628,16.76018678,116.27,116.22,16.76018678]
[1743721822829,7.58,116.26,116.22,16.76018678]
[1743721823027,16.76018678,116.27,116.22,16.76018678]
[1743721823455,7.58,116.26,116.22,16.76018678]
[1743721823752,16.1818,116.26,116.22,16.76018678]
[1743721823954,16.1818,116.26,116.2,44.64964886]
[1743721824151,16.1818,116.26,116.22,16.76018678]
[1743721824335,16.76018678,116.25,116.19,26.0]
[1743721824540,16.76018678,116.22,116.18,16.76018678]
[1743721824731,7.58,116.21,116.18,16.76018678]
[1743721825835,16.1852,116.21,116.16,18.64964886]
[1743721826030,7.58,116.21,116.19,16.76018678]
[1743721826751,16.1851,116.21,116.18,16.76018678]
[1743721826957,16.1851,116.21,116.17,16.76018678]
[1743721827253,16.1851,116.21,116.16,18.64964886]
[1743721827443,32.94528678,116.21,116.17,16.76018678]
[1743721827645,32.94528678,116.21,116.16,18.64964886]
[1743721827847,32.94528678,116.21,116.15,6.2003]
[1743721828052,16.76018678,116.2,116.15,18.64964886]
[1743721828259,16.76018678,116.2,116.16,16.76018678]
[1743721828838,16.76018678,116.19,116.14,16.76018678]
[1743721829455,16.76018678,116.19,116.1,1.5701]
[1743721829456,16.76018678,116.18,116.1,1.5701]
[1743721829663,16.1882,116.17,116.1,1.5701]
[1743721829954,32.94838678,116.17,116.11,18.64964886]
[1743721830151,32.94838678,116.17,116.1,18.64964886]
[1743721830364,16.76018678,116.16,116.1,18.64964886]
[1743721830549,16.76018678,116.16,116.11,16.76018678]
[1743721830970,16.76018678,116.16,116.1,18.64964886]
[1743721831175,37.7083,116.17,116.11,16.76018678]
[1743721831339,25.36838678,116.17,116.12,16.76018678]
[1743721831545,7.58,116.16,116.14,16.76018678]
[1743721831760,16.189,116.16,116.13,26.29269091]
[1743721831954,21.6507,116.22,116.15,26.29269091]
[1743721832149,33.87269091,116.21,116.16,26.29269091]
[1743721832452,16.1851,116.21,116.17,26.29269091]
[1743721832650,7.58,116.21,116.18,26.29269091]
[1743721833473,7.58,116.21,116.17,26.29269091]
[1743721833667,27.58,116.21,116.15,26.29269091]
[1743721833842,34.89849091,116.2,116.16,26.29269091]
[1743721834049,34.89849091,116.2,116.13,18.64964886]
[1743721834050,34.89849091,116.2,116.15,26.29269091]
[1743721835579,34.89849091,116.2,116.16,26.29269091]
[1743721835777,34.89849091,116.2,116.13,18.64964886]
[1743721835950,34.89849091,116.2,116.16,26.29269091]
[1743721838254,7.58,116.21,116.17,26.29269091]
[1743721838453,7.58,116.21,116.18,26.29269091]
[1743721839165,36.54819091,116.22,116.17,26.29269091]
[1743721839371,7.58,116.21,116.17,26.29269091]
[1743721839867,36.54819091,116.22,116.17,26.29269091]
[1743721840074,7.58,116.21,116.18,26.29269091]
[1743721841369,16.1851,116.21,116.18,26.29269091]
[1743721841564,7.58,116.21,116.18,26.29269091]
[1743721841966,16.1851,116.21,116.18,26.29269091]
[1743721842376,7.58,116.21,116.18,26.29269091]
[1743721842955,7.58,116.23,116.2,26.29269091]
[1743721843153,7.58,116.23,116.21,26.29269091]
[1743721843878,7.58,116.23,116.2,26.29269091]
[1743721844258,7.58,116.24,116.2,26.29269091]
[1743721845188,7.58,116.24,116.21,26.29269091]
[1743721846586,16.183,116.24,116.21,26.29269091]
[1743721847684,7.58,116.24,116.21,26.29269091]
[1743721848112,7.58,116.24,116.22,26.29269091]
[1743721849104,10.168,116.25,116.22,26.29269091]
[1743721849489,17.748,116.25,116.22,26.29269091]
[1743721849805,9.1459,116.25,116.22,26.29269091]
[1743721850001,8.6018,116.26,116.22,26.29269091]
[1743721850182,34.89449091,116.26,116.22,26.29269091]
[1743721850486,42.47449091,116.26,116.22,26.29269091]
[1743721850704,34.89449091,116.26,116.22,26.29269091]
[1743721850912,7.58,116.25,116.22,26.29269091]
[1743721851782,34.89449091,116.26,116.22,26.29269091]
[1743721851982,42.47449091,116.26,116.22,26.29269091]
[1743721852679,20.0,116.27,116.23,26.29269091]
[1743721852884,7.58,116.26,116.23,26.29269091]
[1743721853084,7.58,116.26,116.22,26.29269091]
[1743721853500,10.1661,116.28,116.23,26.29269091]
[1743721853805,7.58,116.27,116.23,16.79915085]
[1743721854006,24.37915085,116.27,116.23,16.79915085]
[1743721854703,7.58,116.27,116.23,16.79915085]
[1743721854899,7.58,116.26,116.23,16.79915085]
[1743721857500,16.1815,116.26,116.23,16.79915085]
[1743721860200,1.5659,116.28,116.22,18.64964886]
[1743721860516,9.1459,116.28,116.25,16.79915085]
[1743721860693,17.7458,116.28,116.25,16.79915085]
[1743721860896,9.1459,116.28,116.25,16.79915085]
[1743721861295,17.7459,116.28,116.24,16.79915085]
[1743721861605,17.7459,116.28,116.25,16.79915085]
[1743721861993,9.1459,116.28,116.25,16.79915085]
[1743721862189,10.1659,116.28,116.22,69.04710141]
[1743721862413,16.79915085,116.27,116.22,18.64964886]
[1743721862613,16.79915085,116.27,116.22,35.44879971]
[1743721863012,16.79915085,116.27,116.22,16.79915085]
[1743721863200,16.79915085,116.26,116.22,16.79915085]
[1743721863404,16.79915085,116.27,116.22,16.79915085]
[1743721863604,8.6014,116.26,116.22,16.79915085]
[1743721864816,8.6014,116.26,116.19,18.64964886]
[1743721865018,8.6014,116.26,116.22,16.79915085]
[1743721865218,16.79915085,116.25,116.19,18.64964886]
[1743721865412,7.58,116.24,116.2,16.79915085]
[1743721865997,7.58,116.24,116.21,16.79915085]
[1743721866634,16.1833,116.24,116.21,16.79915085]
[1743721866815,32.98245085,116.24,116.19,25.40525085]
[1743721867513,7.58,116.24,116.2,16.79915085]
[1743721867712,7.58,116.24,116.2,25.40425085]
[1743721868513,7.58,116.24,116.21,16.79915085]
[1743721868720,7.58,116.24,116.22,16.79915085]
[1743721869424,7.58,116.24,116.21,16.79915085]
[1743721869599,7.58,116.24,116.22,16.79915085]
[1743721870120,7.58,116.24,116.22,25.40345085]
[1743721872729,7.58,116.24,116.23,16.79915085]
[1743721873023,7.58,116.26,116.23,16.79915085]
[1743721873731,1.5659,116.28,116.24,16.79915085]
[1743721873732,7.58,116.27,116.24,16.79915085]
[1743721874220,10.1658,116.28,116.24,16.79915085]
[1743721874406,17.7458,116.28,116.22,18.64964886]
[1743721874606,17.7458,116.28,116.23,16.79915085]
[1743721874809,51.56,116.27,116.23,16.79915085]
[1743721875140,17.7458,116.28,116.24,16.79915085]
[1743721875502,17.7458,116.28,116.21,30.1178]
[1743721875503,0.14216157,116.27,116.21,8.6051]
[1743721875703,7.58,116.26,116.22,16.79915085]
[1743721876620,16.1815,116.26,116.22,25.40315085]
[1743721877621,38.45601242,116.23,116.16,8.6088]
[1743721877921,16.79915085,116.21,116.16,8.6088]
[1743721878127,16.79915085,116.2,116.15,8.6091]
[1743721878327,20.0,116.21,116.15,25.40825085]
[1743721878521,16.79915085,116.2,116.15,25.40825085]
[1743721878727,25.40545085,116.2,116.15,25.40825085]
[1743721879305,25.40545085,116.2,116.16,16.79915085]
[1743721879706,34.89059351,116.2,116.16,26.28429351]
[1743721881108,26.28429351,116.19,116.14,26.28429351]
[1743721881312,7.58,116.18,116.14,26.28429351]
[1743721882436,7.58,116.18,116.16,26.28429351]
[1743721882606,7.58,116.18,116.17,26.28429351]
[1743721883233,7.58,116.18,116.16,26.28429351]
[1743721885929,7.58,116.18,116.16,34.89299351]
[1743721887314,7.58,116.18,116.17,34.89229351]
[1743721887635,7.58,116.18,116.16,34.89269351]
[1743721888141,16.1859,116.2,116.16,34.89269351]
[1743721888637,7.58,116.2,116.17,26.28429351]
[1743721888814,16.1859,116.2,116.17,26.28429351]
[1743721889235,16.1859,116.2,116.16,34.89269351]
[1743721889735,51.56,116.19,116.16,34.89269351]
[1743721889942,16.1859,116.2,116.16,34.89269351]
[1743721890533,42.47019351,116.2,116.16,26.28429351]
[1743721891209,26.28429351,116.18,116.09,81.48432314]
[1743721891415,26.28429351,116.17,116.12,8.6117]
[1743721891735,7.58,116.16,116.13,26.28429351]
[1743721892310,7.58,116.16,116.1,44.93394237]
[1743721892311,33.86429351,116.16,116.11,8.6121]
[1743721892517,34.89379351,116.15,116.1,8.6132]
[1743721892728,26.28429351,116.13,116.08,26.28429351]
[1743721892934,7.58,116.12,116.08,26.28429351]
[1743721893311,7.58,116.12,116.09,26.28429351]
[1743721893722,7.58,116.12,116.06,21.5397]
[1743721893929,7.58,116.12,116.09,26.28429351]
[1743721894336,26.28429351,116.1,116.05,8.6169]
[1743721894643,4.35913807,116.1,116.05,8.6169]
[1743721894810,7.58,116.1,116.06,18.64964886]
[1743721895013,7.58,116.1,116.07,26.28429351]
[1743721895213,7.58,116.1,116.06,44.93394237]
[1743721895734,7.58,116.1,116.06,18.64964886]
[1743721895915,378.62269351,116.14,116.09,26.28429351]
[1743721896121,7.58,116.13,116.09,26.28429351]
[1743721897537,7.58,116.13,116.09,34.89789351]
[1743721897741,7.58,116.13,116.11,26.28429351]
[1743721898240,7.58,116.13,116.1,26.28429351]
[1743721899326,5.87205533,116.14,116.1,26.28429351]
[1743721899525,13.45205533,116.14,116.1,26.28429351]
[1743721899739,13.45205533,116.14,116.11,8.6125]
[1743721899933,7.58,116.13,116.11,8.6125]
[1743721902030,7.58,116.13,116.11,34.89679351]
[1743721902221,7.58,116.13,116.11,8.6125]
[1743721903642,7.58,116.13,116.1,8.6132]
[1743721904032,7.58,116.13,116.11,34.89679351]
[1743721905736,7.58,116.13,116.11,25.44858034]
[1743721909650,26.3346,116.17,116.12,16.83608034]
[1743721909829,27.58,116.17,116.13,16.83608034]
[1743721910030,0.14216157,116.16,116.11,8.6125]
[1743721910237,16.83608034,116.15,116.11,25.44858034]
[1743721910431,43.22993283,116.17,116.13,25.44708034]
[1743721910432,57.2433613,116.17,116.13,25.44708034]
[1743721910746,40.40728096,116.17,116.13,25.44708034]
[1743721911750,57.2433613,116.17,116.13,25.44708034]
[1743721911951,16.83608034,116.15,116.09,18.64964886]
[1743721912129,16.83608034,116.15,116.1,25.44928034]
[1743721912329,16.83608034,116.13,116.09,8.6137]
[1743721912633,16.1912,116.13,116.09,25.44978034]
[1743721912832,7.58,116.13,116.1,16.83608034]
[1743721916067,7.58,116.13,116.1,25.44928034]
[1743721920657,7.58,116.13,116.09,18.64964886]
[1743721920863,7.58,116.13,116.1,16.83608034]
[1743721922165,7.58,116.13,116.11,16.83608034]
[1743721922759,24.21918096,116.17,116.11,25.44818034]
[1743721922969,24.21918096,116.17,116.13,16.83608034]
[1743721922970,31.79918096,116.17,116.13,16.83608034]
[1743721923554,48.6352613,116.17,116.12,16.83608034]
[1743721923767,57.2436613,116.17,116.12,16.83608034]
[1743721924270,48.6352613,116.17,116.13,8.611]
[1743721924449,31.79918096,116.17,116.13,25.44708034]
[1743721925072,24.21918096,116.17,116.13,25.44708034]
[1743721925271,31.79918096,116.17,116.13,25.44708034]
[1743721926156,24.21918096,116.17,116.13,25.44708034]
[1743721926369,31.79918096,116.17,116.13,25.44708034]
[1743721927077,40.40728096,116.17,116.13,8.611]
[1743721927375,16.83608034,116.15,116.11,16.83608034]
[1743721927673,16.83608034,116.16,116.11,16.83608034]
[1743721929577,25.44528034,116.16,116.11,25.44808034]
[1743721929768,8.6092,116.16,116.12,16.83608034]
[1743721930578,25.44528034,116.16,116.11,25.44808034]
[1743721930755,8.6092,116.16,116.12,16.83608034]
[1743721933176,8.6092,116.16,116.1,8.6132]
[1743721933472,25.44528034,116.16,116.11,16.83608034]
[1743721933875,25.44528034,116.16,116.12,16.83608034]
[1743721935876,25.44528034,116.16,116.11,16.83608034]
[1743721937273,25.44528034,116.16,116.12,8.6117]
[1743721938578,31.79918096,116.17,116.13,16.83608034]
[1743721938786,48.6352613,116.17,116.13,16.83608034]
[1743721939889,49.6633613,116.17,116.13,16.83608034]
[1743721940190,12.82728096,116.17,116.13,16.83608034]
[1743721940499,29.6633613,116.17,116.12,25.44708034]
[1743721945092,12.82728096,116.17,116.12,25.44708034]
[1743721946782,4.21918096,116.17,116.12,25.44708034]
[1743721947086,34.52578034,116.18,116.12,25.44708034]
[1743721947887,34.52578034,116.18,116.12,24.94708034]
[1743721949688,34.52578034,116.18,116.11,46.97988034]
[1743721950989,25.44408034,116.17,116.11,46.97988034]
[1743721951206,8.608,116.17,116.11,46.97988034]
[1743721951383,16.83608034,116.16,116.11,30.1438]
[1743721951987,25.44408034,116.17,116.11,46.97988034]
[1743721957292,8.608,116.17,116.11,46.97988034]
[1743721957497,14.45498542,116.18,116.13,8.611]
[1743721957674,7.58,116.19,116.16,16.83608034]
[1743721958091,13.18844903,116.2,116.17,16.83608034]
[1743721959478,1.5889,116.21,116.18,8.6073]
[1743721960675,1.5889,116.21,116.18,25.44338034]
[1743721960869,28.65841369,116.22,116.18,25.44338034]
[1743721961476,37.26281369,116.22,116.18,25.44338034]
[1743721961671,29.68281369,116.22,116.18,25.44338034]
[1743721961876,37.26281369,116.22,116.18,25.44338034]
[1743721963407,7.58,116.22,116.18,25.44338034]
[1743721963580,7.58,116.22,116.19,16.83608034]
[1743721963901,24.41608034,116.22,116.18,25.44338034]
[1743721964473,16.83608034,116.22,116.18,25.44338034]
[1743721967906,37.24529644,116.23,116.18,25.44338034]
[1743721968499,37.24529644,116.23,116.19,16.83608034]
[1743721969003,28.64139644,116.23,116.19,16.83608034]
[1743721970415,51.56,116.22,116.19,16.83608034]
[1743721970615,28.64139644,116.23,116.19,25.44198034]
[1743721971304,37.24499644,116.23,116.19,25.44198034]
[1743721971506,28.64139644,116.23,116.19,25.44198034]
[1743721972210,24.41608034,116.23,116.19,25.44198034]
[1743721972385,7.58,116.23,116.19,25.44198034]
[1743721972584,7.58,116.25,116.22,16.83608034]
[1743721973297,46.02098034,116.27,116.22,16.83608034]
[1743721973897,46.02098034,116.27,116.23,16.83608034]
[1743721974407,46.02098034,116.27,116.22,16.83608034]
[1743721974909,30.25430265,116.27,116.23,8.6036]
[1743721975302,30.25430265,116.27,116.23,25.43968034]
[1743721975303,9.1849,116.27,116.23,25.43968034]
[1743721975890,9.1849,116.27,116.24,16.83608034]
[1743721976809,9.1849,116.27,116.25,8.6021]
[1743721977110,7.58,116.27,116.25,8.6021]
[1743721977295,16.83608034,116.28,116.25,8.6021]
[1743721979790,37.23513015,116.29,116.25,8.6021]
[1743721980013,37.23513015,116.29,116.25,25.43818034]
[1743721980307,71.56,116.31,116.27,16.83608034]
[1743721980308,24.41608034,116.31,116.27,16.83608034]
[1743721980610,29.83005521,116.32,116.27,16.83608034]
[1743721980790,37.41005521,116.32,116.27,16.83608034]
[1743721980986,16.83608034,116.31,116.28,8.5999]